bitfinex-derivatives/quotes_SOLF0:USTF0_20260218
["timestamp","ask_amount","ask_price","bid_price","bid_amount"]
[1771374601666,20.80591325,85.203,85.17,1.98405378]
[1771374602073,20.80591325,85.203,85.167,0.0855909]
[1771374602277,20.80591325,85.203,85.161,31.14344808]
[1771374602469,20.80591325,85.203,85.17,1.98405378]
[1771374602768,20.80591325,85.215,85.18,1.98405378]
[1771374603371,20.80591325,85.215,85.137,21.81066786]
[1771374603372,20.80591325,85.189,85.141,20.56954808]
[1771374603674,20.80591325,85.187,85.141,20.56954808]
[1771374603876,20.80591325,85.187,85.15,1.98405378]
[1771374604274,20.80591325,85.187,85.156,0.08635663]
[1771374606579,20.80591325,85.2,85.16,1.98527647]
[1771374607379,20.80591325,85.2,85.161,10.5739]
[1771374607575,20.80591325,85.2,85.171,0.07397895]
[1771374607775,20.80591325,85.212,85.171,0.07397895]
[1771374608082,20.80591325,85.212,85.18,1.98527647]
[1771374608668,20.80591325,85.212,85.187,0.08648864]
[1771374610177,73.96,85.254,85.187,0.08648864]
[1771374610178,20.80591325,85.225,85.19,1.98527647]
[1771374611097,20.80591325,85.225,85.2,1.98527647]
[1771374611278,20.80591325,85.225,85.18,1.98527647]
[1771374611583,0.08784203,85.216,85.18,1.98527647]
[1771374611784,0.08784203,85.216,85.181,10.5714]
[1771374612177,0.08784203,85.216,85.172,20.56954808]
[1771374612371,20.89375528,85.216,85.18,1.98527647]
[1771374614781,20.89375528,85.216,85.182,10.5713]
[1771374615580,20.89375528,85.216,85.18,1.98527647]
[1771374615783,20.89375528,85.216,85.17,12.55817647]
[1771374616481,20.89375528,85.216,85.18,1.98527647]
[1771374616681,20.89375528,85.216,85.19,1.98527647]
[1771374618584,20.89375528,85.216,85.18,1.98527647]
[1771374619784,20.89375528,85.216,85.18,12.55687647]
[1771374621483,20.20443968,85.208,85.17,1.98527647]
[1771374621679,20.20443968,85.208,85.165,10.5735]
[1771374622488,0.07417095,85.195,85.165,10.5735]
[1771374623881,0.07417095,85.195,85.17,1.98527647]
[1771374624482,0.07417095,85.195,85.16,1.98527647]
[1771374624687,20.27861063,85.195,85.16,1.98527647]
[1771374625382,20.27861063,85.195,85.15,1.98527647]
[1771374625880,20.20443968,85.195,85.15,1.98527647]
[1771374626078,20.20443968,85.195,85.153,10.5749]
[1771374626283,20.20443968,85.195,85.154,20.72690963]
[1771374626582,0.08372994,85.181,85.154,20.72690963]
[1771374627086,0.08372994,85.181,85.161,10.5739]
[1771374627386,0.08372994,85.181,85.17,1.98527647]
[1771374628683,0.08372994,85.181,85.161,10.5739]
[1771374629386,0.08372994,85.181,85.16,1.98527647]
[1771374631282,0.08372994,85.181,85.148,105.24]
[1771374631487,20.20443968,85.18,85.148,105.24]
[1771374631681,20.20443968,85.18,85.15,1.98527647]
[1771374631885,20.20443968,85.18,85.151,10.5752]
[1771374632285,0.08372994,85.181,85.16,1.98527647]
[1771374632475,0.08372994,85.181,85.17,1.98527647]
[1771374633282,20.20443968,85.209,85.17,22.7121861]
[1771374633591,10.5669,85.219,85.18,1.98527647]
[1771374633887,30.77133968,85.219,85.18,1.98527647]
[1771374634087,20.20443968,85.219,85.18,1.98527647]
[1771374634688,20.20443968,85.219,85.191,0.08320917]
[1771374636184,10.5657,85.228,85.191,0.08320917]
[1771374636690,20.20443968,85.232,85.192,10.57]
[1771374643093,20.20443968,85.246,85.21,1.98527647]
[1771374643497,20.20443968,85.239,85.2,1.98527647]
[1771374643996,20.20443968,85.239,85.211,0.07916753]
[1771374646094,1.98527647,85.23,85.19,10.5703]
[1771374646402,73.92,85.275,85.19,10.5703]
[1771374646403,20.30667925,85.229,85.19,12.55557647]
[1771374646798,10.5662,85.224,85.182,19.85534676]
[1771374646995,20.30667925,85.223,85.18,1.98527647]
[1771374647699,0.08204641,85.21,85.18,1.98527647]
[1771374650697,0.08204641,85.21,85.182,10.5713]
[1771374656700,0.08204641,85.21,85.191,18.80402535]
[1771374657304,20.30827366,85.235,85.2,1.98527647]
[1771374657496,10.565,85.234,85.2,1.98527647]
[1771374657696,1.98527647,85.24,85.192,0.07581931]
[1771374657697,20.30827366,85.233,85.192,0.07581931]
[1771374658897,20.30827366,85.23,85.193,10.57]
[1771374660105,20.30827366,85.23,85.2,1.98527647]
[1771374660808,20.30827366,85.23,85.192,10.64591931]
[1771374663108,20.30827366,85.242,85.21,1.98527647]
[1771374663705,20.30827366,85.242,85.2,1.98527647]
[1771374663908,20.30827366,85.241,85.2,1.98527647]
[1771374664109,20.30827366,85.241,85.217,0.08266247]
[1771374665109,10.563,85.25,85.217,0.08266247]
[1771374667013,20.30827366,85.253,85.22,1.98214523]
[1771374667214,20.30827366,85.253,85.217,0.08266247]
[1771374668817,20.30827366,85.252,85.217,0.08266247]
[1771374670711,20.30827366,85.252,85.217,10.64966247]
[1771374676123,19.99459083,85.263,85.23,1.98214523]
[1771374676530,19.99459083,85.263,85.224,19.28474322]
[1771374677029,19.99459083,85.263,85.238,0.07631884]
[1771374678028,10.5608,85.268,85.238,0.07631884]
[1771374681129,10.5608,85.268,85.24,1.98214523]
[1771374682840,19.99459083,85.264,85.238,0.07631884]
[1771374706346,20.22121685,85.275,85.24,20.43701989]
[1771374706649,178.0,85.319,85.238,0.07631884]
[1771374706650,20.22121685,85.285,85.26,1.98214523]
[1771374706844,20.22121685,85.285,85.25,18.45487466]
[1771374706845,20.22121685,85.285,85.25,20.43701989]
[1771374707247,20.22121685,85.285,85.264,0.08785595]
[1771374708252,20.22121685,85.285,85.2,11.73]
[1771374708253,20.22121685,85.283,85.24,18.45487466]
[1771374708441,20.2959346,85.283,85.24,1.98214523]
[1771374708846,20.22121685,85.28,85.241,10.564]
[1771374709253,20.22121685,85.28,85.241,18.45487466]
[1771374709446,20.22121685,85.28,85.25,1.98214523]
[1771374718156,20.22121685,85.28,85.247,10.5633]
[1771374718863,20.22121685,85.28,85.241,18.45487466]
[1771374719460,20.22121685,85.28,85.24,12.54624523]
[1771374725866,20.22121685,85.28,85.24,12.54467446]
[1771374730060,20.22121685,85.28,85.25,1.98057446]
[1771374730867,20.22121685,85.28,85.246,10.5634]
[1771374735279,20.22121685,85.28,85.246,30.38537643]
[1771374735478,20.22121685,85.28,85.25,1.98057446]
[1771374738279,20.22121685,85.28,85.246,10.5634]
[1771374740780,20.22121685,85.28,85.25,1.98057446]
[1771374741580,20.22121685,85.28,85.246,10.5634]
[1771374745379,20.22121685,85.28,85.247,19.82197643]
[1771374746786,20.22121685,85.28,85.25,1.98057446]
[1771374750389,20.22121685,85.28,85.241,19.82197643]
[1771374751291,0.08817981,85.269,85.242,10.5639]
[1771374751790,0.08817981,85.269,85.242,30.38587643]
[1771374753385,0.08817981,85.269,85.246,10.5633]
[1771374753587,20.22121685,85.28,85.26,1.98057446]
[1771374754489,20.22121685,85.28,85.249,105.54]
[1771374754490,20.22121685,85.28,85.25,1.98057446]
[1771374756585,20.22121685,85.28,85.251,19.82197643]
[1771374757093,20.22121685,85.28,85.251,125.60197643]
[1771374757283,20.22121685,85.28,85.251,19.82197643]
[1771374757692,20.22121685,85.28,85.251,125.64197643]
[1771374763499,20.22121685,85.28,85.251,136.20467643]
[1771374766988,20.22121685,85.28,85.253,10.5625]
[1771374767196,20.22121685,85.28,85.252,19.61953925]
[1771374767400,20.22121685,85.28,85.253,106.64]
[1771374777408,20.22121685,85.28,85.25,1.98057446]
[1771374777608,20.22121685,85.28,85.251,107.42]
[1771374778705,20.22121685,85.28,85.252,19.36752606]
[1771374778908,20.03065704,85.291,85.253,19.36752606]
[1771374779908,20.03065704,85.291,85.263,0.08290791]
[1771374780505,10.5582,85.289,85.263,0.08290791]
[1771374780810,20.03065704,85.299,85.264,19.36752606]
[1771374781006,21.1031,85.343,85.263,0.08290791]
[1771374781007,10.5554,85.311,85.271,19.36752606]
[1771374781309,20.03065704,85.329,85.29,1.98057446]
[1771374781901,20.03065704,85.336,85.291,19.36752606]
[1771374782410,20.03065704,85.336,85.293,19.36752606]
[1771374782712,20.03065704,85.336,85.305,0.07910675]
[1771374782907,20.03065704,85.336,85.305,19.44663281]
[1771374783312,20.03065704,85.336,85.31,1.98057446]
[1771374786810,20.03065704,85.369,85.32,21.34810052]
[1771374787009,20.03065704,85.369,85.321,19.36752606]
[1771374787216,20.03065704,85.369,85.33,1.98057446]
[1771374787512,20.03065704,85.369,85.321,19.36752606]
[1771374787702,20.03065704,85.361,85.336,0.07851371]
[1771374792114,12.52387562,85.38,85.336,0.07851371]
[1771374792115,20.03065704,85.372,85.34,1.97697562]
[1771374792314,20.03065704,85.372,85.336,0.07851371]
[1771374793212,20.03065704,85.371,85.336,0.07851371]
[1771374794607,10.5482,85.37,85.336,0.07851371]
[1771374794811,19.37694463,85.369,85.336,0.07851371]
[1771374795316,19.37694463,85.368,85.336,0.07851371]
[1771374797513,19.37694463,85.366,85.336,0.07851371]
[1771374807926,1.97697562,85.36,85.24,29.03766886]
[1771374808127,19.37694463,85.339,85.291,18.67978406]
[1771374808630,19.37694463,85.339,85.291,114.53978406]
[1771374809127,19.37694463,85.329,85.291,114.53978406]
[1771374809430,0.08100146,85.324,85.291,114.53978406]
[1771374809633,0.08100146,85.324,85.292,18.67978406]
[1771374810228,19.37694463,85.329,85.292,18.67978406]
[1771374810638,0.08772592,85.317,85.292,18.67978406]
[1771374810834,0.08772592,85.317,85.3,10.5567]
[1771374813234,0.08772592,85.317,85.3,12.53367562]
[1771374814738,19.37694463,85.349,85.311,18.67978406]
[1771374815029,19.37694463,85.349,85.3,20.65675968]
[1771374816137,19.37694463,85.349,85.316,0.07982321]
[1771374816737,19.37694463,85.347,85.316,0.07982321]
[1771374819739,19.37694463,85.347,85.289,108.98]
[1771374819740,19.37694463,85.339,85.29,20.65675968]
[1771374820743,19.37694463,85.338,85.294,10.5575]
[1771374821035,19.37694463,85.338,85.295,18.67978406]
[1771374822033,19.37694463,85.338,85.298,10.557]
[1771374822237,19.37694463,85.338,85.3,20.65675968]
[1771374822744,10.551,85.347,85.31,20.65675968]
[1771374823039,19.37694463,85.346,85.31,20.65675968]
[1771374823234,0.08244031,85.328,85.31,20.65675968]
[1771374825544,0.08244031,85.328,85.31,18.67978406]
[1771374827240,0.08244031,85.328,85.311,10.5553]
[1771374828236,0.08244031,85.328,85.31,18.67978406]
[1771374832450,0.08244031,85.328,85.302,18.91152661]
[1771374832651,19.86438025,85.328,85.301,10.5565]
[1771374840562,19.86438025,85.328,85.291,18.91152661]
[1771374840756,19.86438025,85.328,85.289,108.98]
[1771374840952,0.08244031,85.328,85.301,18.97089823]
[1771374841961,0.08244031,85.328,85.295,129.69089823]
[1771374842156,0.08244031,85.328,85.3,1.97697562]
[1771374842358,0.08244031,85.328,85.31,1.97697562]
[1771374842557,0.08244031,85.328,85.311,18.97089823]
[1771374843463,29.16119567,85.358,85.32,20.94787385]
[1771374843662,18.61159567,85.357,85.32,20.94787385]
[1771374844764,18.61159567,85.357,85.33,0.08523236]
[1771374847368,18.61159567,85.365,85.33,21.03310621]
[1771374847864,18.61159567,85.365,85.33,20.94766756]
[1771374848259,18.61159567,85.365,85.339,0.07626526]
[1771374850267,10.5492,85.361,85.339,0.07626526]
[1771374850464,18.61159567,85.36,85.339,0.07626526]
[1771374861169,18.5465335,85.358,85.31,12.53216933]
[1771374861369,18.5465335,85.358,85.311,112.04]
[1771374861574,18.62038831,85.358,85.311,112.04]
[1771374861775,18.62038831,85.358,85.311,132.28571518]
[1771374861978,18.62038831,85.358,85.32,1.97676933]
[1771374862776,18.5465335,85.383,85.35,1.97676933]
[1771374862982,18.5465335,85.383,85.34,1.97676933]
[1771374864275,18.5465335,85.383,85.353,0.07904737]
[1771374864682,1.97676933,85.39,85.353,0.07904737]
[1771374864683,18.5465335,85.374,85.353,0.07904737]
[1771374866076,18.5465335,85.374,85.34,1.97676933]
[1771374866270,18.5465335,85.371,85.34,1.97676933]
[1771374868379,18.5465335,85.369,85.34,1.97676933]
[1771374868776,18.5465335,85.369,85.34,6.933e-05]
[1771374868982,18.5465335,85.369,85.32,1.97676933]
[1771374869287,18.5465335,85.369,85.31,1.97676933]
[1771374869686,18.5465335,85.359,85.31,1.97676933]
[1771374869888,18.5465335,85.347,85.31,1.97676933]
[1771374870783,18.5465335,85.347,85.31,22.22248451]
[1771374871380,18.5465335,85.341,85.306,112.3]
[1771374871787,1.97676933,85.34,85.292,253.03679319]
[1771374871987,18.5465335,85.339,85.292,273.28250837]
[1771374872290,18.5465335,85.339,85.3,1.97676933]
[1771374872686,0.08916389,85.324,85.3,1.97676933]
[1771374873390,0.08916389,85.324,85.293,132.94571518]
[1771374874090,0.08916389,85.324,85.294,20.24571518]
[1771374876193,18.63569739,85.324,85.293,113.88]
[1771374878395,0.08916389,85.324,85.301,20.24571518]
[1771374878594,18.5465335,85.359,85.31,22.22248451]
[1771374879497,18.5465335,85.359,85.312,20.24571518]
[1771374879696,10.5516,85.342,85.312,20.24571518]
[1771374879889,10.5516,85.342,85.326,0.08829752]
[1771374885399,30.80830181,85.342,85.312,20.24571518]
[1771374885600,10.5521,85.338,85.31,115.06]
[1771374888099,10.5521,85.338,85.31,135.114782]
[1771374889096,10.5521,85.338,85.31,137.09155133]
[1771374891099,0.07851084,85.343,85.311,20.054782]
[1771374891302,0.07851084,85.343,85.313,20.054782]
[1771374893002,0.07851084,85.343,85.28,21.69488028]
[1771374893003,20.25670181,85.341,85.302,20.054782]
[1771374893391,20.25670181,85.341,85.303,117.1]
[1771374894196,10.5521,85.338,85.304,18.59561954]
[1771374894793,10.5521,85.338,85.306,18.59561954]
[1771374895399,10.5521,85.338,85.307,117.7]
[1771374897202,10.5521,85.338,85.308,18.59561954]
[1771374897399,0.07851084,85.343,85.321,18.59561954]
[1771374897607,10.551,85.347,85.323,18.59561954]
[1771374897807,10.551,85.347,85.33,1.97676933]
[1771374898307,10.551,85.347,85.33,6.933e-05]
[1771374899411,10.5502,85.354,85.33,6.933e-05]
[1771374900304,10.5502,85.354,85.333,0.07456139]
[1771374900707,10.5488,85.365,85.333,18.67018093]
[1771374901012,10.5488,85.365,85.334,118.64]
[1771374901513,10.5488,85.365,85.334,137.23561954]
[1771374901905,10.5496,85.358,85.334,137.23561954]
[1771374902208,10.5496,85.358,85.334,18.59561954]
[1771374902413,10.5496,85.358,85.335,118.72]
[1771374908809,29.41522268,85.358,85.335,93.73118668]
[1771374909006,10.5501,85.355,85.335,75.97148668]
[1771374909418,10.5501,85.355,85.335,58.34448668]
[1771374909621,10.5501,85.355,85.335,22.88948668]
[1771374910023,10.5501,85.355,85.336,0.07674206]
[1771374910323,0.07521801,85.354,85.325,137.79561954]
[1771374910814,0.07521801,85.354,85.331,18.59561954]
[1771374911015,18.86562268,85.37,85.331,18.59561954]
[1771374911216,18.86562268,85.37,85.332,18.59561954]
[1771374911421,20.84272487,85.37,85.332,18.59561954]
[1771374911718,10.5501,85.355,85.332,18.59561954]
[1771374912318,10.5501,85.355,85.335,0.08835593]
[1771374921930,19.94164762,85.361,85.335,0.08835593]
[1771374922224,19.94164762,85.361,85.336,120.1]
[1771374922522,10.5492,85.362,85.336,140.27224843]
[1771374923226,10.5492,85.362,85.336,20.17224843]
[1771374923426,10.5492,85.362,85.337,120.18]
[1771374923625,10.93775136,85.4,85.341,20.17224843]
[1771374923626,19.94164762,85.383,85.341,20.17224843]
[1771374923829,19.94164762,85.395,85.37,1.97710219]
[1771374924628,19.94164762,85.395,85.374,0.083974]
[1771374924831,10.5454,85.392,85.374,0.083974]
[1771374927016,19.94164762,85.395,85.374,0.083974]
[1771374927522,10.5443,85.401,85.374,0.083974]
[1771374928528,19.94164762,85.406,85.374,0.083974]
[1771374928826,19.94164762,85.406,85.38,1.97710219]
[1771374929028,19.94164762,85.406,85.374,0.083974]
[1771374929421,19.94164762,85.417,85.39,1.97710219]
[1771374930329,19.94164762,85.417,85.395,0.08260782]
[1771374932519,73.78,85.452,85.395,0.08260782]
[1771374932520,19.94164762,85.447,85.41,1.97710219]
[1771374933529,19.94164762,85.447,85.42,0.08835878]
[1771374933723,20.02867007,85.437,85.39,1.97710219]
[1771374933929,19.94164762,85.429,85.39,1.97710219]
[1771374934630,10.93775136,85.472,85.38,1.97710219]
[1771374934631,19.94164762,85.416,85.38,1.97710219]
[1771374934824,19.94164762,85.416,85.376,20.17224843]
[1771374935332,19.94164762,85.416,85.371,73.78]
[1771374935729,19.94164762,85.413,85.371,73.78]
[1771374936726,0.08594381,85.401,85.371,73.78]
[1771374936929,0.08594381,85.401,85.38,1.97710219]
[1771374937129,0.08594381,85.401,85.375,20.17224843]
[1771374937425,0.08594381,85.401,85.38,1.97710219]
[1771374938533,0.08594381,85.401,85.39,1.97710219]
[1771374938738,19.94164762,85.445,85.4,1.97710219]
[1771374939734,10.5403,85.433,85.4,1.97710219]
[1771374940135,10.5403,85.433,85.414,0.0853918]
[1771374940337,10.5413,85.426,85.414,0.0853918]
[1771374941130,19.94164762,85.432,85.414,0.0853918]
[1771374943938,10.541,85.428,85.414,0.0853918]
[1771374944139,19.94164762,85.432,85.414,0.0853918]
[1771374944938,1.97710219,85.44,85.414,0.0853918]
[1771374945133,19.37227915,85.444,85.414,0.0853918]
[1771374945336,10.5397,85.438,85.414,0.0853918]
[1771374945840,19.37227915,85.437,85.414,0.0853918]
[1771374947741,19.37227915,85.437,85.389,18.29240124]
[1771374947742,19.37227915,85.427,85.381,10.5466]
[1771374948743,19.37227915,85.423,85.381,10.5466]
[1771374949143,0.07930916,85.413,85.381,10.5466]
[1771374950140,19.45158831,85.413,85.38,1.97710219]
[1771374952342,29.91547915,85.41,85.37,1.97710219]
[1771374952544,19.37227915,85.409,85.37,1.97710219]
[1771374953345,0.07870886,85.398,85.37,1.97710219]
[1771374954752,0.07870886,85.398,85.37,20.21737943]
[1771374955047,0.07870886,85.398,85.37,22.19448162]
[1771374960353,18.31293476,85.397,85.353,30.76747943]
[1771374960849,18.31293476,85.397,85.353,20.21737943]
[1771374961251,0.07780334,85.384,85.353,20.21737943]
[1771374962951,0.07780334,85.384,85.36,1.97710219]
[1771374963458,0.07780334,85.384,85.36,22.19448162]
[1771374963759,10.5433,85.409,85.371,20.21737943]
[1771374964158,18.31293476,85.423,85.381,20.21737943]
[1771374964353,18.31293476,85.435,85.391,20.21737943]
[1771374964957,28.85313476,85.434,85.404,0.08347569]
[1771374965761,10.93775136,85.466,85.404,0.08347569]
[1771374965762,18.31293476,85.428,85.404,0.08347569]
[1771374965962,18.39981083,85.428,85.377,20.21737943]
[1771374966359,18.39981083,85.428,85.38,1.97710219]
[1771374966762,10.5422,85.418,85.38,1.97710219]
[1771374967366,18.31293476,85.417,85.38,1.97710219]
[1771374967661,0.07564095,85.408,85.38,1.97710219]
[1771374969368,0.07564095,85.408,85.38,22.19448162]
[1771374971667,18.38857571,85.408,85.374,10.5476]
[1771374974466,10.5435,85.407,85.37,1.97476544]
[1771374974673,28.97221707,85.407,85.37,1.97476544]
[1771374976773,18.42871707,85.404,85.369,20.21737943]
[1771374976972,18.42871707,85.404,85.362,10.549]
[1771374977172,18.42871707,85.404,85.358,18.70627198]
[1771374977378,18.42871707,85.404,85.352,10.5502]
[1771374977577,18.42871707,85.399,85.352,10.5502]
[1771374977779,18.42871707,85.395,85.352,10.5502]
[1771374978173,0.07910802,85.384,85.352,10.5502]
[1771374979079,0.07910802,85.384,85.352,29.25647198]
[1771374979280,0.07910802,85.384,85.354,10.5501]
[1771374979481,0.07910802,85.384,85.354,29.25637198]
[1771374979682,0.07910802,85.384,85.355,18.70627198]
[1771374981575,0.07910802,85.384,85.36,1.97476544]
[1771374982882,0.07910802,85.384,85.355,18.70627198]
[1771374986076,18.42871707,85.383,85.344,10.5512]
[1771374986975,0.08115624,85.372,85.344,10.5512]
[1771374989380,0.08115624,85.372,85.35,12.52516544]
[1771374989988,0.08115624,85.372,85.35,1.97476544]
[1771374990681,0.08115624,85.372,85.344,18.70627198]
[1771374994180,0.08115624,85.372,85.346,10.551]
[1771374994588,0.08115624,85.372,85.344,18.70627198]
[1771374996192,0.08115624,85.372,85.346,18.70627198]
[1771375001094,18.42871707,85.371,85.333,18.70627198]
[1771375002792,0.08115624,85.372,85.323,18.70627198]
[1771375002793,18.42871707,85.369,85.323,18.70627198]
[1771375003692,0.07765631,85.355,85.323,18.70627198]
[1771375004294,0.07765631,85.355,85.33,20.68103742]
[1771375005399,18.42871707,85.369,85.334,18.33365157]
[1771375005895,10.5474,85.376,85.334,18.33365157]
[1771375005896,10.5474,85.376,85.34,20.30841701]
[1771375006196,10.5483,85.369,85.34,20.30841701]
[1771375006498,20.01383129,85.38,85.34,18.33365157]
[1771375007099,20.01383129,85.38,85.351,0.0801843]
[1771375007799,18.03906585,85.377,85.351,0.0801843]
[1771375009900,10.5475,85.375,85.351,0.0801843]
[1771375011100,28.58686585,85.373,85.34,18.33365157]
[1771375011602,0.07755276,85.372,85.34,18.33365157]
[1771375012596,18.11661861,85.372,85.34,18.33365157]
[1771375012797,18.03906585,85.369,85.329,18.33365157]
[1771375012998,18.03906585,85.359,85.321,251.66566417]
[1771375013204,28.58866585,85.359,85.321,251.66566417]
[1771375013505,18.03906585,85.359,85.322,19.10444887]
[1771375014000,0.08384661,85.349,85.322,19.10444887]
[1771375014800,0.08384661,85.349,85.323,19.10444887]
[1771375015606,0.08384661,85.349,85.325,19.10444887]
[1771375015810,29.79242022,85.367,85.325,19.10444887]
[1771375015998,73.12397471,85.524,85.321,251.66566417]
[1771375015999,10.5476,85.375,85.331,19.10444887]
[1771375016301,10.5476,85.375,85.331,140.30444887]
[1771375016503,10.5476,85.375,85.332,19.10444887]
[1771375017101,19.24382022,85.379,85.345,0.07990108]
[1771375020706,1.97476544,85.37,85.345,0.07990108]
[1771375021114,19.24382022,85.379,85.345,0.07990108]
[1771375025211,19.24382022,85.376,85.345,0.07990108]
[1771375026713,10.5475,85.375,85.345,0.07990108]
[1771375026915,19.24382022,85.374,85.345,0.07990108]
[1771375028115,19.24382022,85.372,85.345,0.07990108]
[1771375028613,19.24382022,85.37,85.345,0.07990108]
[1771375028812,21.21858566,85.37,85.345,0.07990108]
[1771375029017,19.24382022,85.37,85.345,0.07990108]
[1771375029824,29.79202022,85.369,85.345,0.07990108]
[1771375030516,19.24382022,85.368,85.345,0.07990108]
[1771375035929,10.5472,85.378,85.345,19.94190726]
[1771375036227,19.87486743,85.395,85.36,21.8386942]
[1771375037232,19.87486743,85.395,85.369,0.08001925]
[1771375039934,19.87486743,85.379,85.344,10.5513]
[1771375041341,0.08858957,85.37,85.344,10.5513]
[1771375042743,19.963457,85.37,85.333,10.5526]
[1771375043039,21.94014502,85.37,85.32,1.97668802]
[1771375043339,19.963457,85.37,85.335,19.86200618]
[1771375044143,19.87486743,85.369,85.324,19.86200618]
[1771375044536,19.87486743,85.367,85.324,19.86200618]
[1771375044732,19.87486743,85.365,85.32,1.97668802]
[1771375044937,2.06527759,85.37,85.313,19.86200618]
[1771375044938,19.87486743,85.355,85.315,10.5549]
[1771375045347,19.87486743,85.355,85.313,19.86200618]
[1771375045546,1.97668802,85.35,85.3,1.97668802]
[1771375045742,0.0756482,85.344,85.3,1.97668802]
[1771375046039,19.87486743,85.343,85.3,21.8386942]
[1771375046545,19.87486743,85.343,85.302,10.5564]
[1771375049244,19.87486743,85.343,85.3,21.8386942]
[1771375051341,10.5523,85.336,85.3,21.8386942]
[1771375052149,10.5526,85.334,85.3,21.8386942]
[1771375052352,0.08352493,85.327,85.3,21.8386942]
[1771375052646,10.5537,85.325,85.292,123.32]
[1771375052842,10.5537,85.325,85.29,1.97668802]
[1771375053042,10.5537,85.325,85.29,21.8386942]
[1771375053442,0.08352493,85.327,85.29,21.8386942]
[1771375055451,0.08352493,85.327,85.29,19.86200618]
[1771375055650,0.08352493,85.327,85.29,21.8386942]
[1771375057054,0.08352493,85.327,85.3,1.97668802]
[1771375057245,0.08352493,85.327,85.3,21.8386942]
[1771375066862,0.08352493,85.327,85.3,19.86200618]
[1771375075772,10.551,85.347,85.311,18.37170546]
[1771375076476,18.00495854,85.358,85.311,18.37170546]
[1771375076677,10.5499,85.356,85.315,18.37170546]
[1771375077371,10.5499,85.356,85.327,0.08560633]
[1771375078875,10.5487,85.366,85.331,18.37170546]
[1771375079081,18.00495854,85.368,85.331,18.37170546]
[1771375079978,18.00495854,85.368,85.341,0.08638635]
[1771375080180,18.00495854,85.359,85.32,18.37170546]
[1771375080382,18.00495854,85.357,85.32,18.37170546]
[1771375080978,18.00495854,85.349,85.32,18.37170546]
[1771375081573,18.00495854,85.349,85.301,18.37170546]
[1771375081882,18.00495854,85.349,85.314,10.5549]
[1771375082482,0.07491809,85.34,85.314,10.5549]
[1771375083283,0.07491809,85.34,85.31,18.37170546]
[1771375085193,0.07491809,85.34,85.31,20.34839348]
[1771375087395,0.07491809,85.34,85.312,18.37170546]
[1771375089493,0.07491809,85.34,85.31,1.97668802]
[1771375089494,10.5493,85.36,85.321,18.37170546]
[1771375089803,18.00495854,85.368,85.331,18.37170546]
[1771375090688,28.55335854,85.368,85.331,18.37170546]
[1771375090998,28.55335854,85.368,85.341,0.08047878]
[1771375091201,10.5493,85.361,85.341,0.08047878]
[1771375091401,18.00495854,85.357,85.32,20.34839348]
[1771375092196,0.08772092,85.358,85.315,10.5549]
[1771375092197,18.00495854,85.355,85.315,10.5549]
[1771375092803,18.00495854,85.349,85.309,18.37170546]
[1771375093801,0.08088771,85.338,85.309,18.37170546]
[1771375094201,0.08088771,85.338,85.31,1.97668802]
[1771375094702,0.08088771,85.338,85.31,12.53218802]
[1771375095900,0.08088771,85.338,85.31,30.1894096]
[1771375097200,0.08088771,85.338,85.312,10.5552]
[1771375098503,18.19355378,85.338,85.303,17.65617848]
[1771375099295,0.08088771,85.338,85.311,17.65617848]
[1771375117908,10.5499,85.356,85.32,1.97773112]
[1771375118113,1.97773112,85.37,85.331,17.65617848]
[1771375118114,18.11266607,85.37,85.331,17.65617848]
[1771375118407,1.97773112,85.38,85.331,17.65617848]
[1771375118604,8.77347264,85.379,85.331,17.65617848]
[1771375118806,1.97773112,85.38,85.331,17.65617848]
[1771375119115,8.77346585,85.379,85.331,17.65617848]
[1771375119308,20.09039719,85.38,85.347,0.08933848]
[1771375119510,8.77178876,85.379,85.347,0.08933848]
[1771375119710,10.5477,85.374,85.347,0.08933848]
[1771375123414,18.11266607,85.373,85.347,0.08933848]
[1771375127717,1.97773112,85.37,85.347,0.08933848]
[1771375129014,18.11266607,85.373,85.347,0.08933848]
[1771375134513,73.8,85.397,85.347,0.08933848]
[1771375134514,17.65520613,85.369,85.347,0.08933848]
[1771375135017,17.65520613,85.369,85.333,17.65617848]
[1771375135416,17.65520613,85.369,85.349,0.08899069]
[1771375138723,17.65520613,85.369,85.333,17.65617848]
[1771375139117,17.65520613,85.367,85.333,17.65617848]
[1771375146627,10.547,85.38,85.341,17.59850336]
[1771375146931,10.547,85.38,85.341,17.68065091]
[1771375150932,10.5476,85.374,85.341,17.68065091]
[1771375151128,17.65520613,85.374,85.341,17.68065091]
[1771375151330,17.65520613,85.374,85.341,0.08214755]
[1771375152737,17.65520613,85.371,85.341,0.08214755]
[1771375153837,17.65520613,85.369,85.341,0.08214755]
[1771375158344,10.5473,85.377,85.341,18.1456509]
[1771375162354,8.71721537,85.376,85.341,18.1456509]
[1771375162553,8.71721537,85.375,85.341,18.1456509]
[1771375162755,10.5473,85.377,85.341,18.1456509]